[Event "GrandPrix_29.05"]
[Site "Chess.com"]
[Date "2020.05.29"]
[Round "5"]
[White "BogdanBelyakov89"]
[Black "FLamps8"]
[Result "0-1"]
[WhiteElo "2214"]
[BlackElo "2202"]
[TimeControl "600+2"]
[EndTime "11:31:39 PDT"]
[Termination "FLamps8 won by resignation"]

1. e4 {[%clk 0:10:01.9]} 1... c6 {[%clk 0:10:00.8]} 2. d4 {[%clk 0:09:59.3]}
2... d5 {[%clk 0:10:01.7]} 3. Nc3 {[%clk 0:09:52.6]} 3... dxe4 {[%clk
0:10:01.5]} 4. Nxe4 {[%clk 0:09:54.5]} 4... Bf5 {[%clk 0:10:02.7]} 5. Ng3 {[%clk
0:09:55]} 5... Bg6 {[%clk 0:10:04.2]} 6. f4 {[%clk 0:09:48.1]} 6... e6 {[%clk
0:09:59.5]} 7. Nf3 {[%clk 0:09:46.4]} 7... Nd7 {[%clk 0:09:49]} 8. h4 {[%clk
0:09:46.6]} 8... h6 {[%clk 0:09:36.7]} 9. h5 {[%clk 0:09:43.4]} 9... Bh7 {[%clk
0:09:37.8]} 10. Bd3 {[%clk 0:09:44.1]} 10... Bxd3 {[%clk 0:09:37.2]} 11. Qxd3
{[%clk 0:09:46]} 11... Ngf6 {[%clk 0:09:35.3]} 12. Bd2 {[%clk 0:09:34.4]} 12...
Qc7 {[%clk 0:09:10.8]} 13. Ne5 {[%clk 0:08:55.8]} 13... c5 {[%clk 0:08:45]} 14.
c3 {[%clk 0:08:41.2]} 14... Rd8 {[%clk 0:08:25.2]} 15. Qe2 {[%clk 0:07:45]}
15... cxd4 {[%clk 0:07:55.3]} 16. cxd4 {[%clk 0:07:43.4]} 16... Qb6 {[%clk
0:07:55.6]} 17. Bc3 {[%clk 0:07:11.2]} 17... Be7 {[%clk 0:06:52.3]} 18. O-O
{[%clk 0:06:35.9]} 18... O-O {[%clk 0:06:50.2]} 19. Kh1 {[%clk 0:06:29]} 19...
Nd5 {[%clk 0:06:39.6]} 20. f5 {[%clk 0:05:58.1]} 20... Nxe5 {[%clk 0:05:10.1]}
21. dxe5 {[%clk 0:05:47.4]} 21... Bh4 {[%clk 0:05:01.3]} 22. Qg4 {[%clk
0:05:27]} 22... Bg5 {[%clk 0:04:26.5]} 23. Rf3 {[%clk 0:05:14.9]} 23... Nxc3
{[%clk 0:03:31.8]} 24. bxc3 {[%clk 0:05:13.3]} 24... exf5 {[%clk 0:03:32.9]} 25.
Rxf5 {[%clk 0:04:31.7]} 25... Qb2 {[%clk 0:03:07.2]} 26. Raf1 {[%clk 0:04:25.6]}
26... Qxc3 {[%clk 0:02:54.9]} 27. Ne4 {[%clk 0:03:26]} 27... Rd4 {[%clk
0:02:18.6]} 28. e6 {[%clk 0:01:36.4]} 28... Qc4 {[%clk 0:01:57.2]} 29. exf7+
{[%clk 0:00:31.9]} 29... Kh8 {[%clk 0:01:51.6]} 30. Re1 {[%clk 0:00:31.8]} 30...
Be3 {[%clk 0:00:14]} 31. Re5 {[%clk 0:00:17.2]} 31... Bd2 {[%clk 0:00:11.3]} 32.
Rf1 {[%clk 0:00:11.4]} 32... Qxf1+ {[%clk 0:00:11.6]} 33. Kh2 {[%clk 0:00:12.6]}
33... Qf4+ {[%clk 0:00:11.7]} 34. Qxf4 {[%clk 0:00:13.3]} 34... Bxf4+ {[%clk
0:00:12.7]} 0-1

[Event "GrandPrix_29.05"]
[Site "Chess.com"]
[Date "2020.05.29"]
[Round "5"]
[White "hubertsmazak"]
[Black "Sanan_Sjugirov"]
[Result "1/2-1/2"]
[WhiteElo "2554"]
[BlackElo "2791"]
[TimeControl "600+2"]
[EndTime "11:31:40 PDT"]
[Termination "Game drawn by agreement"]

1. d4 {[%clk 0:10:01.9]} 1... Nf6 {[%clk 0:10:00]} 2. c4 {[%clk 0:10:02.8]} 2...
e6 {[%clk 0:10:00.6]} 3. g3 {[%clk 0:10:04.1]} 3... d5 {[%clk 0:10:01]} 4. Bg2
{[%clk 0:10:05.5]} 4... Bb4+ {[%clk 0:09:58.7]} 5. Nd2 {[%clk 0:10:06.1]} 5...
O-O {[%clk 0:09:58.4]} 6. Nf3 {[%clk 0:10:07.4]} 6... b6 {[%clk 0:09:58.1]} 7.
O-O {[%clk 0:10:05.6]} 7... Bb7 {[%clk 0:09:58.8]} 8. b3 {[%clk 0:10:01.5]} 8...
Nbd7 {[%clk 0:09:35.4]} 9. Bb2 {[%clk 0:10:01.4]} 9... a5 {[%clk 0:09:31.1]} 10.
a3 {[%clk 0:09:52.6]} 10... Be7 {[%clk 0:09:13.9]} 11. Rc1 {[%clk 0:09:53.4]}
11... c5 {[%clk 0:08:56.5]} 12. cxd5 {[%clk 0:09:48.5]} 12... Bxd5 {[%clk
0:08:45.5]} 13. Re1 {[%clk 0:09:09.8]} 13... Ne4 {[%clk 0:08:08]} 14. Nc4 {[%clk
0:08:11.9]} 14... cxd4 {[%clk 0:07:22.3]} 15. Nxd4 {[%clk 0:08:04]} 15... Bc5
{[%clk 0:06:53.4]} 16. Ne3 {[%clk 0:05:41.5]} 16... Bb7 {[%clk 0:06:49.1]} 17.
Qc2 {[%clk 0:05:17.3]} 17... Rc8 {[%clk 0:05:23.8]} 18. Bxe4 {[%clk 0:04:11.7]}
18... Bxd4 {[%clk 0:05:22.4]} 19. Qd2 {[%clk 0:03:24.4]} 19... Bxb2 {[%clk
0:01:24.8]} 20. Rxc8 {[%clk 0:03:23.7]} 20... Qxc8 {[%clk 0:01:25.3]} 21. Bxb7
{[%clk 0:03:24.7]} 21... Qxb7 {[%clk 0:00:49]} 22. Qxb2 {[%clk 0:03:25.1]} 22...
Nf6 {[%clk 0:00:31.6]} 23. Rd1 {[%clk 0:03:17.8]} 23... h6 {[%clk 0:00:28.2]}
24. f3 {[%clk 0:02:57.1]} 24... Qc6 {[%clk 0:00:25.1]} 25. Qc1 {[%clk
0:02:45.1]} 25... Qb5 {[%clk 0:00:22.9]} 26. Qc4 {[%clk 0:02:44.4]} 26... Qe5
{[%clk 0:00:23.8]} 27. Qd4 {[%clk 0:02:43.8]} 27... Qb5 {[%clk 0:00:15.4]} 28.
Qc4 {[%clk 0:02:44.8]} 28... Qe5 {[%clk 0:00:16.4]} 29. Qd4 {[%clk 0:02:46.1]}
29... Qc7 {[%clk 0:00:15.2]} 30. Qc4 {[%clk 0:02:41.5]} 30... Qb8 {[%clk
0:00:15.1]} 31. Rc1 {[%clk 0:02:15.6]} 31... Rd8 {[%clk 0:00:15.7]} 32. Qc7
{[%clk 0:02:16]} 32... Qxc7 {[%clk 0:00:10.1]} 33. Rxc7 {[%clk 0:02:16.3]} 33...
Rd2 {[%clk 0:00:09.1]} 34. Kf2 {[%clk 0:02:07.2]} 34... Rb2 {[%clk 0:00:09.8]}
35. Rc8+ {[%clk 0:01:51.8]} 35... Kh7 {[%clk 0:00:10.5]} 36. Rc3 {[%clk
0:01:53.7]} 36... Ra2 {[%clk 0:00:08.9]} 37. Rc6 {[%clk 0:01:42]} 37... b5
{[%clk 0:00:06.7]} 38. Rc5 {[%clk 0:01:36.9]} 38... Rxa3 {[%clk 0:00:07.7]} 39.
Rxb5 {[%clk 0:01:37.7]} 39... a4 {[%clk 0:00:08.4]} 40. bxa4 {[%clk 0:01:36]}
40... Rxa4 {[%clk 0:00:10.3]} 41. Rb7 {[%clk 0:01:34.1]} 41... Kg6 {[%clk
0:00:11.4]} 42. Rb5 {[%clk 0:01:32]} 42... Ne8 {[%clk 0:00:11]} 43. h4 {[%clk
0:01:28.4]} 43... h5 {[%clk 0:00:11]} 44. Rg5+ {[%clk 0:01:21.5]} 44... Kh6
{[%clk 0:00:11.5]} 45. Rc5 {[%clk 0:01:22.5]} 45... Nf6 {[%clk 0:00:11.9]} 46.
Rc7 {[%clk 0:01:19.7]} 46... Kg6 {[%clk 0:00:12.1]} 47. Rc5 {[%clk 0:01:20.2]}
47... Kh6 {[%clk 0:00:12.5]} 1/2-1/2

[Event "GrandPrix_29.05"]
[Site "Chess.com"]
[Date "2020.05.29"]
[Round "5"]
[White "VolodymyrMolyboha"]
[Black "DaggiGretarsson"]
[Result "1-0"]
[WhiteElo "2297"]
[BlackElo "2088"]
[TimeControl "600+2"]
[EndTime "11:31:40 PDT"]
[Termination "VolodymyrMolyboha won on time"]

1. e4 {[%clk 0:10:01.9]} 1... g6 {[%clk 0:08:40.1]} 2. d4 {[%clk 0:09:59.8]}
2... Bg7 {[%clk 0:08:40.6]} 3. Nc3 {[%clk 0:09:59.9]} 3... d6 {[%clk 0:08:41.5]}
4. g3 {[%clk 0:09:59.8]} 4... Nf6 {[%clk 0:08:41]} 5. Bg2 {[%clk 0:10:00.7]}
5... O-O {[%clk 0:08:42]} 6. Nge2 {[%clk 0:10:00.5]} 6... Nbd7 {[%clk 0:08:43]}
7. h3 {[%clk 0:10:01.2]} 7... Rb8 {[%clk 0:08:43.8]} 8. a4 {[%clk 0:10:00.4]}
8... b6 {[%clk 0:08:44.5]} 9. O-O {[%clk 0:09:59.6]} 9... a6 {[%clk 0:08:44.8]}
10. Be3 {[%clk 0:09:53]} 10... Bb7 {[%clk 0:08:35.3]} 11. g4 {[%clk 0:09:51.8]}
11... b5 {[%clk 0:08:35.2]} 12. axb5 {[%clk 0:09:46.6]} 12... axb5 {[%clk
0:08:36.3]} 13. Ng3 {[%clk 0:09:47.7]} 13... b4 {[%clk 0:08:37]} 14. Nce2 {[%clk
0:09:47.5]} 14... e5 {[%clk 0:08:25.1]} 15. Qd2 {[%clk 0:09:26.7]} 15... exd4
{[%clk 0:08:04.1]} 16. Nxd4 {[%clk 0:09:22.9]} 16... Nc5 {[%clk 0:05:37.8]} 17.
Bg5 {[%clk 0:08:20.3]} 17... Qd7 {[%clk 0:05:31.3]} 18. Rfe1 {[%clk 0:08:02.9]}
18... Rfe8 {[%clk 0:05:25.1]} 19. f3 {[%clk 0:07:50.4]} 19... Ba6 {[%clk
0:02:55.4]} 20. Rad1 {[%clk 0:07:44.1]} 20... Rb6 {[%clk 0:02:34.6]} 21. Nb3
{[%clk 0:05:11.7]} 21... Nxb3 {[%clk 0:02:19.2]} 22. cxb3 {[%clk 0:05:12]} 22...
Qe6 {[%clk 0:02:15]} 23. Qc2 {[%clk 0:04:38.5]} 23... Nd7 {[%clk 0:01:15.8]} 24.
Be3 {[%clk 0:04:19.7]} 24... Nc5 {[%clk 0:01:05.5]} 25. f4 {[%clk 0:03:37.3]}
25... Rb5 {[%clk 0:01:05.8]} 26. Bf1 {[%clk 0:03:03.5]} 26... Qxb3 {[%clk
0:01:03.3]} 27. Qxb3 {[%clk 0:03:00.7]} 27... Nxb3 {[%clk 0:01:04.3]} 28. Bxb5
{[%clk 0:02:35.4]} 28... Bxb5 {[%clk 0:01:05]} 29. e5 {[%clk 0:02:35.1]} 29...
dxe5 {[%clk 0:01:02.7]} 30. f5 {[%clk 0:02:36.2]} 30... e4 {[%clk 0:00:40.3]}
31. g5 {[%clk 0:02:19.1]} 31... Bxb2 {[%clk 0:00:37.1]} 32. f6 {[%clk 0:02:20]}
32... Bd3 {[%clk 0:00:35.2]} 33. Bf4 {[%clk 0:02:14.3]} 33... Bd4+ {[%clk
0:00:31]} 34. Kh2 {[%clk 0:02:13.7]} 34... c5 {[%clk 0:00:31.6]} 35. Rxd3 {[%clk
0:02:11.1]} 35... c4 {[%clk 0:00:12.3]} 36. Rdd1 {[%clk 0:01:34.4]} 36... c3
{[%clk 0:00:11.7]} 37. Rxe4 {[%clk 0:01:34.2]} 37... Rxe4 {[%clk 0:00:08.7]} 38.
Nxe4 {[%clk 0:01:35]} 38... c2 {[%clk 0:00:09.9]} 39. Re1 {[%clk 0:01:22.8]}
39... h5 {[%clk 0:00:07.7]} 40. Nd6 {[%clk 0:00:47.8]} 1-0

[Event "GrandPrix_29.05"]
[Site "Chess.com"]
[Date "2020.05.29"]
[Round "5"]
[White "ehrenfeld"]
[Black "Glek_Igor"]
[Result "0-1"]
[WhiteElo "2174"]
[BlackElo "2497"]
[TimeControl "600+2"]
[EndTime "11:31:43 PDT"]
[Termination "Glek_Igor won on time"]

1. e4 {[%clk 0:10:01.9]} 1... c5 {[%clk 0:09:54.3]} 2. Nf3 {[%clk 0:10:00.4]}
2... a6 {[%clk 0:09:55.3]} 3. g3 {[%clk 0:09:24.6]} 3... Nc6 {[%clk 0:09:48.5]}
4. Bg2 {[%clk 0:09:25.2]} 4... g6 {[%clk 0:09:44.6]} 5. d4 {[%clk 0:08:44.9]}
5... cxd4 {[%clk 0:09:43.1]} 6. Nxd4 {[%clk 0:08:45.7]} 6... Bg7 {[%clk
0:09:44.7]} 7. Nxc6 {[%clk 0:08:46.2]} 7... bxc6 {[%clk 0:09:41.7]} 8. O-O
{[%clk 0:08:46.5]} 8... Nf6 {[%clk 0:09:39.5]} 9. c4 {[%clk 0:08:42.2]} 9... O-O
{[%clk 0:09:32.4]} 10. Nc3 {[%clk 0:08:40.1]} 10... d6 {[%clk 0:09:26.5]} 11. e5
{[%clk 0:08:03.5]} 11... dxe5 {[%clk 0:09:24]} 12. Qxd8 {[%clk 0:08:03.9]} 12...
Rxd8 {[%clk 0:09:23.8]} 13. Bxc6 {[%clk 0:08:05.4]} 13... Rb8 {[%clk 0:08:55.5]}
14. b3 {[%clk 0:07:54.4]} 14... Bh3 {[%clk 0:06:50.7]} 15. Bg2 {[%clk
0:07:44.1]} 15... Bxg2 {[%clk 0:06:48.9]} 16. Kxg2 {[%clk 0:07:45.1]} 16... Rd3
{[%clk 0:06:24.3]} 17. Na4 {[%clk 0:07:35]} 17... Nd7 {[%clk 0:06:14.2]} 18. Be3
{[%clk 0:07:23]} 18... e4 {[%clk 0:05:18.8]} 19. Rac1 {[%clk 0:07:19.3]} 19...
f5 {[%clk 0:05:01.5]} 20. c5 {[%clk 0:06:48.4]} 20... Be5 {[%clk 0:04:27.2]} 21.
c6 {[%clk 0:06:34.2]} 21... Nf6 {[%clk 0:04:27.1]} 22. Nc5 {[%clk 0:05:57]}
22... Rd6 {[%clk 0:04:14.2]} 23. Nxa6 {[%clk 0:05:36.9]} 23... Rc8 {[%clk
0:04:13.8]} 24. Nb4 {[%clk 0:05:24]} 24... Bb2 {[%clk 0:03:49.4]} 25. Bc5 {[%clk
0:04:21.6]} 25... Bxc1 {[%clk 0:02:58.2]} 26. Bxd6 {[%clk 0:04:15.9]} 26... Ba3
{[%clk 0:02:58.2]} 27. Bxe7 {[%clk 0:04:08.3]} 27... Bxb4 {[%clk 0:02:19.4]} 28.
Bxb4 {[%clk 0:03:22.7]} 28... Rxc6 {[%clk 0:02:07.9]} 29. Rd1 {[%clk 0:03:23.4]}
29... Ng4 {[%clk 0:02:02.4]} 30. Rd8+ {[%clk 0:02:09.6]} 30... Kf7 {[%clk
0:02:01.4]} 31. Rd7+ {[%clk 0:02:09.6]} 31... Ke6 {[%clk 0:02:00.4]} 32. Rd2
{[%clk 0:01:49]} 32... Ne5 {[%clk 0:01:51.1]} 33. a4 {[%clk 0:00:56]} 33... Rc1
{[%clk 0:01:26.7]} 34. Rd6+ {[%clk 0:00:46.8]} 34... Kf7 {[%clk 0:01:25.8]} 35.
g4 {[%clk 0:00:15.8]} 35... Nf3 {[%clk 0:00:27.1]} 0-1

[Event "GrandPrix_29.05"]
[Site "Chess.com"]
[Date "2020.05.29"]
[Round "5"]
[White "Natalya_Buksa"]
[Black "Mizner"]
[Result "0-1"]
[WhiteElo "2096"]
[BlackElo "2111"]
[TimeControl "600+2"]
[EndTime "11:31:45 PDT"]
[Termination "Mizner won by resignation"]

1. e4 {[%clk 0:10:01.4]} 1... e6 {[%clk 0:10:00.6]} 2. d4 {[%clk 0:10:01.3]}
2... d5 {[%clk 0:10:00.9]} 3. Nd2 {[%clk 0:10:02.6]} 3... c5 {[%clk 0:10:00.1]}
4. Ngf3 {[%clk 0:10:02.5]} 4... cxd4 {[%clk 0:10:00.7]} 5. Nxd4 {[%clk
0:10:03.1]} 5... Nc6 {[%clk 0:10:01.1]} 6. Bb5 {[%clk 0:10:03.8]} 6... Bd7
{[%clk 0:10:02]} 7. Nxc6 {[%clk 0:10:04.8]} 7... bxc6 {[%clk 0:10:03.5]} 8. Bd3
{[%clk 0:10:06.2]} 8... Qc7 {[%clk 0:10:03.5]} 9. O-O {[%clk 0:10:07.2]} 9...
Ne7 {[%clk 0:10:03.5]} 10. Qe2 {[%clk 0:10:08.4]} 10... g6 {[%clk 0:10:04.1]}
11. Nf3 {[%clk 0:10:08.4]} 11... Bg7 {[%clk 0:10:04.8]} 12. Bg5 {[%clk
0:10:06.4]} 12... Rb8 {[%clk 0:10:02.4]} 13. c3 {[%clk 0:10:04.5]} 13... f6
{[%clk 0:10:00.4]} 14. Bh4 {[%clk 0:10:04.8]} 14... e5 {[%clk 0:09:52.9]} 15.
Rfe1 {[%clk 0:09:20.4]} 15... O-O {[%clk 0:09:08.3]} 16. exd5 {[%clk 0:09:09.1]}
16... Nxd5 {[%clk 0:08:41]} 17. Bg3 {[%clk 0:09:07.1]} 17... Rfe8 {[%clk
0:08:32]} 18. Bc4 {[%clk 0:08:48.3]} 18... Kh8 {[%clk 0:08:28.7]} 19. Rad1
{[%clk 0:08:20.1]} 19... Be6 {[%clk 0:08:15.7]} 20. h4 {[%clk 0:08:19.1]} 20...
Qb6 {[%clk 0:08:01.7]} 21. Bb3 {[%clk 0:07:58.7]} 21... Bg4 {[%clk 0:07:48.8]}
22. Qc2 {[%clk 0:07:01.1]} 22... Rbd8 {[%clk 0:07:29]} 23. Rd2 {[%clk 0:06:55]}
23... Bxf3 {[%clk 0:05:53.2]} 24. gxf3 {[%clk 0:06:54.5]} 24... Bh6 {[%clk
0:05:54.6]} 25. Rde2 {[%clk 0:06:53.5]} 25... Nf4 {[%clk 0:05:44.4]} 26. Re4
{[%clk 0:06:32.6]} 26... Nd3 {[%clk 0:05:07.8]} 27. Rd1 {[%clk 0:06:06.7]} 27...
Nc5 {[%clk 0:04:42.4]} 28. Re2 {[%clk 0:05:37.8]} 28... Rxd1+ {[%clk 0:04:24.1]}
29. Qxd1 {[%clk 0:05:37]} 29... Rd8 {[%clk 0:04:26]} 30. Qc2 {[%clk 0:05:36.8]}
30... Rd3 {[%clk 0:03:52.2]} 31. Bc4 {[%clk 0:05:13.2]} 31... Rxf3 {[%clk
0:02:23.7]} 32. b4 {[%clk 0:05:12.4]} 32... Na4 {[%clk 0:02:00.7]} 33. Kh2
{[%clk 0:01:05]} 33... Nxc3 {[%clk 0:01:54.7]} 34. Rd2 {[%clk 0:00:20.7]} 34...
Bxd2 {[%clk 0:01:03.7]} 35. Qxd2 {[%clk 0:00:20.6]} 35... Qd4 {[%clk 0:01:05.4]}
36. Qh6 {[%clk 0:00:17.6]} 36... Qxc4 {[%clk 0:01:06]} 37. Qf8+ {[%clk
0:00:18.3]} 37... Qg8 {[%clk 0:01:06.9]} 38. Qc5 {[%clk 0:00:18.9]} 38... Qe8
{[%clk 0:00:58.7]} 39. Kg2 {[%clk 0:00:19.3]} 39... Rd3 {[%clk 0:00:58.3]} 40.
Qc4 {[%clk 0:00:20.5]} 40... Qd7 {[%clk 0:00:56.8]} 41. h5 {[%clk 0:00:21.1]}
41... Ne2 {[%clk 0:00:50.3]} 42. hxg6 {[%clk 0:00:14.5]} 42... hxg6 {[%clk
0:00:50.9]} 43. Qh4+ {[%clk 0:00:15]} 43... Kg7 {[%clk 0:00:51.1]} 44. b5 {[%clk
0:00:13.4]} 44... Nxg3 {[%clk 0:00:49.4]} 0-1

[Event "GrandPrix_29.05"]
[Site "Chess.com"]
[Date "2020.05.29"]
[Round "5"]
[White "Margency"]
[Black "haddinibilbaoo"]
[Result "1-0"]
[WhiteElo "1990"]
[BlackElo "2114"]
[TimeControl "600+2"]
[EndTime "11:31:46 PDT"]
[Termination "Margency won by resignation"]

1. e4 {[%clk 0:10:01.9]} 1... c5 {[%clk 0:10:00.7]} 2. Nf3 {[%clk 0:10:02.6]}
2... Nc6 {[%clk 0:10:02]} 3. d4 {[%clk 0:10:03.6]} 3... cxd4 {[%clk 0:10:03.3]}
4. Nxd4 {[%clk 0:10:05.3]} 4... e5 {[%clk 0:10:04.8]} 5. Nb5 {[%clk 0:10:05.9]}
5... d6 {[%clk 0:10:06.2]} 6. c4 {[%clk 0:10:06.7]} 6... Be7 {[%clk 0:10:05.4]}
7. N1c3 {[%clk 0:10:06.8]} 7... a6 {[%clk 0:10:06.6]} 8. Na3 {[%clk 0:10:08]}
8... Nf6 {[%clk 0:10:07.8]} 9. Nc2 {[%clk 0:10:07.5]} 9... O-O {[%clk
0:10:05.3]} 10. Be2 {[%clk 0:10:06]} 10... Be6 {[%clk 0:10:05.5]} 11. O-O {[%clk
0:10:05.9]} 11... Rc8 {[%clk 0:10:06.6]} 12. b3 {[%clk 0:10:00.6]} 12... b5
{[%clk 0:09:51.3]} 13. cxb5 {[%clk 0:09:55.9]} 13... axb5 {[%clk 0:09:53.2]} 14.
Bf3 {[%clk 0:09:12]} 14... Qa5 {[%clk 0:08:47.7]} 15. Bd2 {[%clk 0:09:01.9]}
15... b4 {[%clk 0:07:40.8]} 16. Na4 {[%clk 0:08:42.5]} 16... d5 {[%clk
0:07:05.3]} 17. exd5 {[%clk 0:08:20.9]} 17... Nxd5 {[%clk 0:07:07.2]} 18. a3
{[%clk 0:07:02.8]} 18... Qb5 {[%clk 0:06:18]} 19. axb4 {[%clk 0:06:43.7]} 19...
Ndxb4 {[%clk 0:06:07.9]} 20. Na3 {[%clk 0:06:37.9]} 20... Qd3 {[%clk 0:05:51.7]}
21. Rb1 {[%clk 0:05:40.2]} 21... Nd4 {[%clk 0:05:27.5]} 22. Bxb4 {[%clk
0:05:07.2]} 22... Qxd1 {[%clk 0:05:27.3]} 23. Bxd1 {[%clk 0:04:53.4]} 23... Bxb4
{[%clk 0:05:26.9]} 24. Nc4 {[%clk 0:04:53.1]} 24... f6 {[%clk 0:04:58.1]} 25.
Nab6 {[%clk 0:04:44]} 25... Rcd8 {[%clk 0:04:54.5]} 26. Ne3 {[%clk 0:04:29.1]}
26... f5 {[%clk 0:04:10.5]} 27. Nbc4 {[%clk 0:04:23.6]} 27... e4 {[%clk
0:03:56]} 28. Nc2 {[%clk 0:04:21.7]} 28... Bc5 {[%clk 0:03:26.3]} 29. Nxd4
{[%clk 0:04:18.7]} 29... Rxd4 {[%clk 0:03:26.9]} 30. Be2 {[%clk 0:04:12.1]}
30... f4 {[%clk 0:02:57.4]} 31. Rfd1 {[%clk 0:03:30.9]} 31... f3 {[%clk
0:02:26.4]} 32. Rxd4 {[%clk 0:03:27.4]} 32... Bxd4 {[%clk 0:02:27.6]} 33. gxf3
{[%clk 0:03:27.9]} 33... exf3 {[%clk 0:02:28.5]} 34. Bd3 {[%clk 0:03:26]} 34...
Rf4 {[%clk 0:02:20.6]} 35. Re1 {[%clk 0:03:07.3]} 35... Rg4+ {[%clk 0:02:15.2]}
36. Kf1 {[%clk 0:03:08]} 36... Bf7 {[%clk 0:00:32.1]} 37. Be4 {[%clk 0:01:59.2]}
37... Rg2 {[%clk 0:00:27.3]} 38. Ne3 {[%clk 0:01:59.3]} 38... Rxh2 {[%clk
0:00:17.3]} 39. Bxf3 {[%clk 0:01:59.1]} 39... Bxb3 {[%clk 0:00:18.1]} 40. Kg1
{[%clk 0:01:34.2]} 40... Rh6 {[%clk 0:00:11.6]} 41. Nf5 {[%clk 0:01:29.6]} 41...
Rg6+ {[%clk 0:00:12.7]} 42. Bg2 {[%clk 0:01:30.7]} 42... Bc5 {[%clk 0:00:11]}
43. Re5 {[%clk 0:01:27.7]} 43... Bf8 {[%clk 0:00:05.9]} 44. Rb5 {[%clk
0:01:10.4]} 44... Bf7 {[%clk 0:00:06.3]} 45. Rb8 {[%clk 0:01:07.2]} 45... h6
{[%clk 0:00:05.9]} 46. Ne7+ {[%clk 0:01:06.9]} 1-0

[Event "GrandPrix_29.05"]
[Site "Chess.com"]
[Date "2020.05.29"]
[Round "5"]
[White "Bacyanide"]
[Black "igorkovalenko"]
[Result "1-0"]
[WhiteElo "2414"]
[BlackElo "2156"]
[TimeControl "600+2"]
[EndTime "11:31:57 PDT"]
[Termination "Bacyanide won by resignation"]

1. d4 {[%clk 0:10:01.9]} 1... Nf6 {[%clk 0:10:00.7]} 2. Nf3 {[%clk 0:10:02.4]}
2... b6 {[%clk 0:10:01.3]} 3. Bf4 {[%clk 0:10:00.9]} 3... Bb7 {[%clk 0:10:02]}
4. e3 {[%clk 0:09:59.9]} 4... g6 {[%clk 0:10:02]} 5. Nbd2 {[%clk 0:09:57.4]}
5... Bg7 {[%clk 0:10:03.1]} 6. h3 {[%clk 0:09:58.3]} 6... d6 {[%clk 0:10:04.1]}
7. a4 {[%clk 0:09:59.3]} 7... a5 {[%clk 0:10:02.3]} 8. Bd3 {[%clk 0:09:58.4]}
8... O-O {[%clk 0:10:00.9]} 9. O-O {[%clk 0:09:56.3]} 9... Nbd7 {[%clk
0:09:58.6]} 10. Bh2 {[%clk 0:09:51.9]} 10... e6 {[%clk 0:09:55.6]} 11. c3 {[%clk
0:09:46.5]} 11... Qe7 {[%clk 0:09:56]} 12. Nc4 {[%clk 0:09:37.9]} 12... Ne4
{[%clk 0:09:46.9]} 13. Qc2 {[%clk 0:09:34.9]} 13... f5 {[%clk 0:09:47]} 14. Nfd2
{[%clk 0:09:03.9]} 14... Ng5 {[%clk 0:09:11.2]} 15. Na3 {[%clk 0:08:46.1]} 15...
h5 {[%clk 0:09:06.7]} 16. f4 {[%clk 0:08:43.2]} 16... Nf7 {[%clk 0:09:05.9]} 17.
e4 {[%clk 0:08:44.6]} 17... Nf6 {[%clk 0:08:55]} 18. Rae1 {[%clk 0:08:42.7]}
18... Qd7 {[%clk 0:08:49.9]} 19. Nb5 {[%clk 0:08:02.3]} 19... Rae8 {[%clk
0:07:42.5]} 20. d5 {[%clk 0:07:39.6]} 20... fxe4 {[%clk 0:07:26.4]} 21. dxe6
{[%clk 0:07:27.6]} 21... Rxe6 {[%clk 0:06:59.9]} 22. Nxe4 {[%clk 0:07:25.4]}
22... Nxe4 {[%clk 0:06:30.1]} 23. Rxe4 {[%clk 0:06:55]} 23... Bxe4 {[%clk
0:06:22.9]} 24. Bxe4 {[%clk 0:06:54.8]} 24... c6 {[%clk 0:06:23.6]} 25. Nd4
{[%clk 0:06:50.9]} 25... Bxd4+ {[%clk 0:04:05.8]} 26. cxd4 {[%clk 0:06:50.6]}
26... Qe7 {[%clk 0:03:58.1]} 27. Bxg6 {[%clk 0:06:46.9]} 27... Qf6 {[%clk
0:03:59]} 28. f5 {[%clk 0:05:51.4]} 28... Qxd4+ {[%clk 0:03:54.4]} 29. Kh1
{[%clk 0:05:51.8]} 29... Rf6 {[%clk 0:03:40.5]} 30. Bxh5 {[%clk 0:05:23.3]}
30... Ne5 {[%clk 0:02:54.3]} 31. Bg3 {[%clk 0:05:01.4]} 31... Qc4 {[%clk
0:01:46.2]} 32. Qd1 {[%clk 0:02:52.5]} 32... Qd5 {[%clk 0:00:20.2]} 33. Bxe5
{[%clk 0:02:22.2]} 33... Qxd1 {[%clk 0:00:13.4]} 34. Bxd1 {[%clk 0:02:21.6]}
34... dxe5 {[%clk 0:00:15.3]} 35. g4 {[%clk 0:02:21.7]} 35... Rd6 {[%clk
0:00:11.2]} 36. Bb3+ {[%clk 0:02:11.4]} 36... Kg7 {[%clk 0:00:12.1]} 37. g5
{[%clk 0:02:02.4]} 37... e4 {[%clk 0:00:13]} 38. Bc2 {[%clk 0:01:17.6]} 38...
Rd4 {[%clk 0:00:11.3]} 39. h4 {[%clk 0:01:07.7]} 39... Rh8 {[%clk 0:00:08]} 40.
Rf4 {[%clk 0:00:58.9]} 40... Re8 {[%clk 0:00:04.7]} 41. h5 {[%clk 0:00:42.9]}
41... e3 {[%clk 0:00:05.8]} 42. f6+ {[%clk 0:00:41.2]} 42... Kg8 {[%clk
0:00:06.8]} 43. f7+ {[%clk 0:00:41.2]} 1-0